bitfinex-derivatives/quotes_BNBF0:USTF0_20250710
["timestamp","ask_amount","ask_price","bid_price","bid_amount"]
[1752171873799,1.65222344,677.05,676.52,0.97850458]
[1752171874000,0.25716059,677.08,676.53,0.97850458]
[1752171874198,0.25716059,677.08,676.54,0.97850458]
[1752171874395,0.25716059,677.08,676.55,0.97850458]
[1752171874598,0.25716059,677.08,676.56,0.97850458]
[1752171874794,0.25716059,677.08,676.57,0.97850458]
[1752171874996,0.25716059,677.08,676.58,0.97850458]
[1752171875200,0.25716059,677.08,676.59,0.97850458]
[1752171875394,0.25716059,677.08,676.6,0.97850458]
[1752171875698,0.25716059,677.08,676.61,0.97850458]
[1752171875899,0.25716059,677.08,676.62,0.97850458]
[1752171876198,0.25716059,677.08,676.63,0.97850458]
[1752171876401,1.65222344,677.05,676.64,0.97850458]
[1752171876701,1.65222344,677.04,676.65,0.97850458]
[1752171876900,1.65222344,677.04,676.66,0.97850458]
[1752171877099,1.65222344,677.04,676.3,1.754]
[1752171877295,1.65222344,677.06,676.31,0.97892565]
[1752171877499,1.65222344,677.05,676.32,0.97892565]
[1752171877700,1.65222344,677.05,676.33,0.97892565]
[1752171877997,1.65222344,676.99,676.34,0.97892565]
[1752171878199,1.65222344,676.99,676.35,0.97892565]
[1752171878396,1.65222344,676.99,676.36,0.97892565]
[1752171878601,1.65222344,676.99,676.37,0.97892565]
[1752171878801,1.65222344,676.98,676.38,0.97892565]
[1752171879100,1.65222344,676.97,676.39,0.97892565]
[1752171879300,1.65222344,676.97,676.4,0.97892565]
[1752171879499,1.65222344,676.97,676.41,0.97892565]
[1752171879698,1.65222344,676.97,676.3,1.754]
[1752171879699,1.65222344,676.97,676.42,0.97892565]
[1752171879900,1.65222344,676.97,676.43,0.97892565]
[1752171880101,1.65222344,676.97,676.44,0.97892565]
[1752171880299,1.65222344,676.96,676.45,0.97892565]
[1752171880495,1.65222344,676.96,676.3,1.754]
[1752171880496,1.65222344,676.96,676.46,0.97892565]
[1752171880697,1.65222344,676.96,676.47,0.97892565]
[1752171880900,1.65222344,676.96,676.48,0.97892565]
[1752171881101,1.65222344,676.96,676.49,0.97892565]
[1752171881298,1.65222344,676.96,676.5,0.97892565]
[1752171881602,1.65222344,676.95,676.51,0.97892565]
[1752171881801,1.65222344,676.93,676.52,0.97892565]
[1752171882097,1.65222344,676.93,676.53,0.97892565]
[1752171882302,1.65222344,676.84,676.3,1.754]
[1752171882496,1.65222344,676.84,676.31,0.98017194]
[1752171882698,1.65222344,676.84,676.32,0.98017194]
[1752171882997,1.65222344,676.76,676.33,0.98017194]
[1752171883201,1.65222344,676.76,676.34,0.98017194]
[1752171883401,1.65222344,676.76,676.35,0.98017194]
[1752171883699,1.65222344,676.76,676.36,0.98017194]
[1752171883898,1.65222344,676.76,676.37,0.98017194]
[1752171884103,1.65222344,676.76,676.38,0.98017194]
[1752171884299,1.65222344,676.76,676.39,0.98017194]
[1752171884502,1.65222344,676.76,676.4,0.98017194]
[1752171884699,1.65222344,676.76,676.41,0.98017194]
[1752171884898,1.65222344,676.76,676.42,0.98017194]
[1752171885101,1.65222344,676.76,676.43,0.98017194]
[1752171885299,1.23514558,676.91,676.44,0.98017194]
[1752171885497,1.65222344,677.01,676.45,0.98017194]
[1752171885797,1.65222344,677.01,676.46,0.98017194]
[1752171886103,1.65222344,677.01,676.47,0.98017194]
[1752171886302,1.65222344,677.01,676.48,0.98017194]
[1752171886501,1.65222344,677.01,676.49,0.98017194]
[1752171886802,1.65222344,677.01,676.5,0.98017194]
[1752171887001,1.65222344,677.01,676.51,0.98017194]
[1752171887200,0.25716059,677.08,676.52,0.98017194]
[1752171887201,1.65222344,677.0,676.52,0.98017194]
[1752171887403,1.65222344,677.0,676.53,0.98017194]
[1752171887703,1.65222344,677.0,676.54,0.98017194]
[1752171887903,1.65222344,677.0,676.55,0.98017194]
[1752171888102,1.65222344,677.0,676.56,0.98017194]
[1752171888302,1.65222344,677.0,676.57,0.98017194]
[1752171888500,1.65222344,677.0,676.58,0.98017194]
[1752171888701,1.65222344,677.0,676.59,0.98017194]
[1752171889001,1.65222344,677.0,676.6,0.98017194]
[1752171889201,1.65222344,676.99,676.61,0.98017194]
[1752171889402,1.65222344,676.99,676.62,0.98017194]
[1752171889610,1.65222344,676.99,676.63,0.98017194]
[1752171889904,1.65222344,676.99,676.64,0.98017194]
[1752171890205,1.65222344,676.99,676.65,0.98017194]
[1752171890400,1.65222344,676.95,676.66,0.98017194]
[1752171890600,1.65222344,676.95,676.3,1.754]
[1752171890904,1.65222344,676.91,676.31,0.98142247]
[1752171891099,1.65222344,676.85,676.32,0.98142247]
[1752171891305,1.65222344,676.84,676.33,0.98142247]
[1752171891600,1.65222344,676.84,676.34,0.98142247]
[1752171891803,1.65222344,676.83,676.35,0.98142247]
[1752171892001,1.65222344,676.84,676.36,0.98142247]
[1752171892301,1.65222344,676.83,676.37,0.98142247]
[1752171892501,1.65222344,676.83,676.38,0.98142247]
[1752171892702,1.65222344,676.86,676.39,0.98142247]
[1752171892906,1.65222344,676.86,676.4,0.98142247]
[1752171893106,1.65222344,676.88,676.41,0.98142247]
[1752171893403,1.65222344,676.88,676.42,0.98142247]
[1752171893605,1.65222344,676.88,676.43,0.98142247]
[1752171893811,1.65222344,676.88,676.44,0.98142247]
[1752171894002,1.65222344,676.88,676.45,0.98142247]
[1752171894201,1.65222344,676.87,676.46,0.98142247]
[1752171894405,1.65222344,676.81,676.47,0.98142247]
[1752171894602,1.65222344,676.81,676.48,0.98142247]
[1752171894803,1.65222344,676.81,676.49,0.98142247]
[1752171895003,1.65222344,676.81,676.5,0.98142247]
[1752171895203,1.23549034,677.0,676.51,0.98142247]
[1752171895204,1.65222344,676.94,676.51,0.98142247]
[1752171895507,1.65222344,676.94,676.52,0.98142247]
[1752171895703,1.65222344,676.94,676.53,0.98142247]
[1752171895906,1.65222344,676.94,676.54,0.98142247]
[1752171896102,1.65222344,676.94,676.55,0.98142247]
[1752171896304,1.65222344,676.93,676.56,0.98142247]
[1752171896508,1.65222344,676.9,676.57,0.9822952]
[1752171896704,1.65222344,676.9,676.58,0.9822952]
[1752171897008,1.65222344,676.9,676.59,0.9822952]
[1752171897309,0.25716059,677.08,676.6,0.9822952]
[1752171897503,0.25716059,677.08,676.61,0.9822952]
[1752171897803,0.25716059,677.08,676.62,0.9822952]
[1752171898007,0.25716059,677.08,676.63,0.9822952]
[1752171898205,0.25716059,677.08,676.64,0.9822952]
[1752171898408,0.25716059,677.08,676.65,0.9822952]
[1752171898608,0.25716059,677.08,676.66,0.9822952]
[1752171898908,0.25716059,677.08,676.67,0.9822952]
[1752171899105,0.25716059,677.08,676.68,0.9822952]
[1752171899407,0.25716059,677.08,675.72,2.20169027]
[1752171899408,0.25716059,677.08,676.69,0.9822952]
[1752171899704,0.25716059,677.08,676.7,0.9822952]
[1752171899903,0.25716059,677.08,676.71,0.9822952]
[1752171900108,0.25716059,677.08,676.72,0.9822952]
[1752171900409,0.25716059,677.08,676.73,2.8772952]
[1752171900606,1.65222344,677.04,676.74,0.9822952]
[1752171900804,1.65222344,677.05,676.75,0.98325043]
[1752171901105,1.65222344,677.06,676.76,0.98325043]
[1752171901409,1.65222344,676.98,676.73,1.895]
[1752171902410,1.65222344,676.79,676.73,1.895]
[1752171902707,1.65222344,676.8,676.73,1.895]
[1752171902905,1.65222344,676.85,676.73,1.895]
[1752171903106,1.65222344,676.86,676.73,1.895]
[1752171903713,1.65222344,676.93,676.73,1.895]
[1752171905119,1.65222344,676.82,676.73,1.895]
[1752171905914,1.65222344,676.83,676.73,1.895]
[1752171906820,1.65222344,676.94,676.73,1.895]
[1752171907019,3.31756286,677.46,676.73,1.895]
[1752171907020,1.23732236,677.19,676.74,0.98276964]
[1752171907215,1.65222344,677.2,676.75,0.98276964]
[1752171907420,1.65222344,677.21,676.76,0.98276964]
[1752171907620,1.65222344,677.21,676.77,0.98276964]
[1752171907916,1.65222344,677.21,676.78,0.98276964]
[1752171908120,1.65222344,677.21,676.79,0.98276964]
[1752171908319,1.65222344,677.21,676.8,0.98276964]
[1752171908518,1.65222344,677.21,676.81,0.98276964]
[1752171908721,1.65222344,677.21,676.82,0.98276964]
[1752171908922,0.25708745,677.22,676.83,0.98276964]
[1752171909122,0.25708745,677.22,676.84,0.98276964]
[1752171909321,0.25708745,677.22,676.85,0.98276964]
[1752171909618,0.25708745,677.22,676.86,0.98276964]
[1752171909817,0.25708745,677.22,676.87,0.98276964]
[1752171910021,0.25708745,677.22,676.88,0.98276964]
[1752171910321,0.25708745,677.22,676.89,0.98276964]
[1752171910616,0.25708745,677.22,676.9,0.98276964]
[1752171910823,0.25708745,677.22,676.91,0.98276964]
[1752171911121,0.25708745,677.22,676.92,0.98276964]
[1752171911421,0.25708745,677.22,676.93,0.98276964]
[1752171911719,0.25708745,677.22,676.94,0.98276964]
[1752171911920,0.25708745,677.22,676.95,0.98276964]
[1752171912220,0.25708745,677.22,676.96,0.98276964]
[1752171912421,0.25708745,677.22,676.97,0.98276964]
[1752171912718,0.25708745,677.22,676.73,1.895]
[1752171912918,0.25708745,677.22,676.74,0.98137937]
[1752171913217,0.25708745,677.22,676.75,0.98137937]
[1752171913421,0.25708745,677.22,676.76,0.98137937]
[1752171913616,0.25708745,677.22,676.77,0.98137937]
[1752171913816,0.25708745,677.22,676.78,0.98137937]
[1752171914019,0.25708745,677.22,676.79,0.98137937]
[1752171914217,0.25708745,677.22,676.8,0.98137937]
[1752171914419,0.25708745,677.22,676.73,1.895]
[1752171914420,0.25708745,677.22,676.81,0.98137937]
[1752171914618,0.25708745,677.22,676.82,0.98137937]
[1752171914822,0.25708745,677.22,676.83,0.98137937]
[1752171914823,1.65222344,677.21,676.83,0.98137937]
[1752171915021,1.65222344,677.2,676.84,0.98137937]
[1752171915224,1.65222344,677.2,676.85,0.98137937]
[1752171915424,1.65222344,677.2,676.86,0.98137937]
[1752171915625,1.65222344,677.2,676.87,0.98137937]
[1752171915825,1.65222344,677.2,676.73,1.895]
[1752171916027,1.65222344,677.21,676.74,0.9812252]
[1752171916326,1.90931089,677.22,676.75,0.9812252]
[1752171916521,1.90931089,677.22,676.76,0.9812252]
[1752171916823,0.25708745,677.22,676.77,0.9812252]
[1752171917022,0.25708745,677.22,676.78,0.9812252]
[1752171917221,0.25708745,677.22,676.79,0.9812252]
[1752171917421,1.65222344,677.34,676.8,0.9812252]
[1752171917623,1.65222344,677.23,676.81,0.9812252]
[1752171917825,0.25698019,677.54,676.73,1.895]
[1752171917826,1.23563254,677.4,676.82,0.9812252]
[1752171918022,0.25698019,677.54,676.73,1.895]
[1752171918023,1.23563254,677.53,676.83,0.9812252]
[1752171918226,1.23563254,677.52,676.84,0.9812252]
[1752171918423,1.23563254,677.51,676.85,0.9812252]
[1752171918628,1.23563254,677.53,676.86,0.9812252]
[1752171918825,1.23563254,677.52,676.87,0.9812252]
[1752171919024,1.23563254,677.53,676.88,0.9812252]
[1752171919226,1.23563254,677.52,676.89,0.9812252]
[1752171919424,1.23563254,677.51,676.9,0.9812252]
[1752171919627,1.23563254,677.5,676.91,0.9812252]
[1752171919825,1.23563254,677.53,676.92,0.9812252]
[1752171920125,1.23563254,677.52,676.93,0.9812252]
[1752171920323,1.23563254,677.53,676.94,0.9812252]
[1752171920525,1.23563254,677.53,676.95,0.98064736]
[1752171920729,0.25692517,677.62,676.73,1.895]
[1752171921030,1.23563254,677.61,676.74,0.98062604]
[1752171921229,1.23563254,677.6,676.75,0.98062604]
[1752171921424,1.23563254,677.59,676.76,0.98062604]
[1752171921624,1.23563254,677.58,676.77,0.98062604]
[1752171921829,1.23563254,677.57,676.78,0.98062604]
[1752171922125,1.23563254,677.57,676.73,1.895]
[1752171922126,1.23563254,677.56,676.79,0.98062604]
[1752171922329,1.23563254,677.55,676.8,0.98062604]
[1752171922629,1.23563254,677.54,676.81,0.98062604]
[1752171922828,1.23563254,677.53,676.82,0.98062604]
[1752171923028,1.23563254,677.52,676.83,0.98062604]
[1752171923226,1.23563254,677.51,676.84,0.98062604]
[1752171923429,1.23563254,677.5,676.85,0.98062604]
[1752171923629,1.23563254,677.49,676.86,0.98062604]
[1752171923828,0.25692517,677.62,676.87,0.98062604]
[1752171924130,0.25692517,677.62,676.88,0.98062604]
[1752171924324,0.25692517,677.62,676.89,0.98062604]
[1752171924527,0.25692517,677.62,676.9,0.98062604]
[1752171924728,0.25692517,677.62,676.91,0.98062604]
[1752171924927,0.25692517,677.62,676.92,0.98062604]
[1752171925126,0.25692517,677.62,676.93,0.98062604]
[1752171925327,0.25692517,677.62,676.94,0.98062604]
[1752171925527,0.25692517,677.62,676.95,0.98062604]
[1752171925731,0.25692517,677.62,676.96,0.98062604]
[1752171925931,0.25692517,677.62,676.97,0.98062604]
[1752171926132,0.25692517,677.62,676.98,0.98062604]
[1752171926432,0.25692517,677.62,676.73,1.895]
[1752171926433,0.25692517,677.62,676.99,0.98062604]
[1752171926631,0.25692517,677.62,677.0,0.98062604]
[1752171926828,0.25692517,677.62,677.01,0.98062604]
[1752171927026,0.25692517,677.62,677.02,0.98062604]
[1752171927231,0.25692517,677.62,677.03,0.98062604]
[1752171927526,0.25692517,677.62,677.04,0.98062604]
[1752171927729,0.25692517,677.62,677.05,0.98062604]
[1752171927928,0.25692517,677.62,677.06,0.98062604]
[1752171928130,0.25692517,677.62,677.07,0.98062604]
[1752171928332,0.25692517,677.62,677.08,0.98062604]
[1752171928528,0.25692517,677.62,677.09,0.98062604]
[1752171928731,0.25692517,677.62,676.73,1.895]
[1752171928732,0.25692517,677.62,677.1,0.98062604]
[1752171928928,0.25692517,677.62,677.11,0.98062604]
[1752171929132,0.25692517,677.62,677.12,0.98062604]
[1752171929333,0.25692517,677.62,677.13,0.98062604]
[1752171929531,0.25692517,677.62,677.14,0.98062604]
[1752171929735,0.25692517,677.62,677.15,0.98062604]
[1752171929931,0.25692517,677.62,677.16,0.98062604]
[1752171930136,0.25692517,677.62,677.17,0.98062604]
[1752171930332,0.25692517,677.62,677.18,0.98062604]
[1752171930636,0.25692517,677.62,677.19,0.98062604]
[1752171930832,0.25692517,677.62,677.2,0.98062604]
[1752171931132,0.25692517,677.62,677.21,0.98062604]
[1752171931332,0.25692517,677.62,677.22,0.98062604]
[1752171931536,0.25692517,677.62,677.23,0.98062604]
[1752171931736,0.25692517,677.62,677.24,0.98062604]
[1752171932036,0.25692517,677.62,677.25,0.9735117]
[1752171932232,0.25692517,677.62,677.26,0.9735117]
[1752171932436,0.25692517,677.62,677.27,0.9735117]
[1752171932732,0.25692517,677.62,677.28,0.9735117]
[1752171932936,0.25692517,677.62,677.29,0.9735117]
[1752171933137,0.25692517,677.62,677.3,0.9735117]
[1752171933436,0.25692517,677.62,677.31,0.9735117]
[1752171933637,0.25692517,677.62,677.32,0.9735117]
[1752171933937,0.25692517,677.62,677.33,0.9735117]
[1752171934136,0.25692517,677.62,676.73,1.895]
[1752171934335,0.25692517,677.62,676.74,0.97271827]
[1752171934537,0.25692517,677.62,676.75,0.97271827]
[1752171934735,0.25692517,677.62,676.73,1.895]
[1752171934736,0.25692517,677.62,676.76,0.97271827]
[1752171934933,0.25692517,677.62,676.77,0.97271827]
[1752171935137,0.25692517,677.62,676.78,0.97271827]
[1752171935335,0.25692517,677.62,676.79,0.97271827]
[1752171935534,0.25692517,677.62,676.8,0.97271827]
[1752171935837,0.25692517,677.62,676.81,0.97271827]
[1752171936041,0.25692517,677.62,676.82,0.97271827]
[1752171936238,0.25692517,677.62,676.83,0.97271827]
[1752171936439,0.25692517,677.62,676.84,0.97271827]
[1752171936638,0.25692517,677.62,676.85,0.97271827]
[1752171936839,0.25692517,677.62,676.86,0.97271827]
[1752171937036,0.25692517,677.62,676.87,0.97271827]
[1752171937338,0.25692517,677.62,676.88,0.97271827]
[1752171937539,0.25692517,677.62,676.89,0.97271827]
[1752171937738,0.25692517,677.62,676.73,1.895]
[1752171937739,0.25692517,677.62,676.9,0.97271827]
[1752171938036,0.25692517,677.62,676.91,0.97271827]
[1752171938240,0.25692517,677.62,676.92,0.97271827]
[1752171938437,0.25692517,677.62,676.93,0.97271827]
[1752171938638,0.25692517,677.62,676.94,0.97271827]
[1752171938840,0.25692517,677.62,676.95,0.97271827]
[1752171939040,0.25692517,677.62,676.96,0.97271827]
[1752171939238,0.25692517,677.62,676.97,0.97271827]
[1752171939441,0.25692517,677.62,676.98,0.97131844]
[1752171939742,0.25692517,677.62,676.99,0.97131844]
[1752171939941,0.25692517,677.62,677.0,0.97131844]
[1752171940142,0.25692517,677.62,677.01,0.97131844]
[1752171940442,0.25692517,677.62,677.02,0.97131844]
[1752171940644,0.25692517,677.62,677.03,0.97131844]
[1752171940840,0.25692517,677.62,677.04,0.97131844]
[1752171941042,0.25692517,677.62,677.05,0.97131844]
[1752171941239,0.25692517,677.62,677.06,0.97131844]
[1752171941443,0.25692517,677.62,677.07,0.97131844]
[1752171941644,0.25692517,677.62,677.08,0.97131844]
[1752171941940,0.25692517,677.62,677.09,0.97131844]
[1752171942142,0.25692517,677.62,677.1,0.97131844]
[1752171942340,0.25692517,677.62,677.11,0.97131844]
[1752171942543,0.25692517,677.62,677.12,0.97131844]
[1752171942741,0.25692517,677.62,677.13,0.97131844]
[1752171942942,0.25692517,677.62,677.14,0.97131844]
[1752171943148,0.25692517,677.62,677.15,0.97131844]
[1752171943347,0.25692517,677.62,677.16,0.97131844]
[1752171943643,0.25692517,677.62,677.17,0.97131844]
[1752171943847,0.25692517,677.62,677.18,0.97131844]
[1752171944045,0.25692517,677.62,677.19,0.97131844]
[1752171944248,0.25692517,677.62,677.2,0.97131844]
[1752171944445,0.25692517,677.62,677.04,1.918]
[1752171944646,0.25692517,677.62,677.05,0.97212844]
[1752171944844,0.25692517,677.62,677.06,0.97212844]
[1752171945045,0.25692517,677.62,677.07,0.97212844]
[1752171945248,0.25692517,677.62,677.08,0.97212844]
[1752171945445,0.25692517,677.62,677.09,0.97212844]
[1752171945646,0.25692517,677.62,677.1,0.97212844]
[1752171945949,0.25692517,677.62,677.11,0.97212844]
[1752171946245,0.25692517,677.62,677.12,0.97212844]
[1752171946449,0.25692517,677.62,677.13,0.97250638]
[1752171946650,0.25692517,677.62,677.14,0.97250638]
[1752171946848,0.25692517,677.62,677.15,0.97250638]
[1752171947045,0.25692517,677.62,677.16,0.97250638]
[1752171947346,0.25692517,677.62,677.17,0.97250638]
[1752171947649,0.25692517,677.62,677.18,0.97250638]
[1752171947945,0.25692517,677.62,677.19,0.97250638]
[1752171948148,0.25692517,677.62,677.2,0.97250638]
[1752171948346,0.25692517,677.62,677.04,1.918]
[1752171948347,0.25692517,677.62,677.21,0.97250638]
[1752171948549,0.25692517,677.62,677.22,0.97250638]
[1752171948746,0.25692517,677.62,677.23,0.97250638]
[1752171948951,0.25692517,677.62,677.04,1.918]
[1752171949152,0.25692517,677.62,677.05,0.97266195]
[1752171949349,0.25692517,677.62,677.06,0.97266195]
[1752171949555,0.25692517,677.62,677.07,0.97266195]
[1752171949753,0.25692517,677.62,677.08,0.97266195]
[1752171950053,0.25692517,677.62,677.04,1.918]
[1752171950054,0.25692517,677.62,677.09,0.97266195]
[1752171950249,0.25692517,677.62,677.1,0.97266195]
[1752171950451,0.25692517,677.62,677.11,0.97266195]
[1752171950650,0.25692517,677.62,677.12,0.97266195]
[1752171950950,0.25692517,677.62,677.13,0.97266195]
[1752171951153,0.25692517,677.62,677.14,0.97266195]
[1752171951453,0.25692517,677.62,677.04,1.918]
[1752171951454,0.25692517,677.62,677.15,0.97266195]
[1752171951654,0.25692517,677.62,677.16,0.97266195]
[1752171951850,0.25692517,677.62,677.17,0.97266195]
[1752171952050,0.25692517,677.62,677.18,0.97266195]
[1752171952351,0.25692517,677.62,677.19,0.97365076]
[1752171952556,0.25692517,677.62,677.04,1.918]
[1752171952755,0.25692517,677.62,677.05,0.97365478]
[1752171952956,0.25692517,677.62,677.06,0.97365478]
[1752171953156,0.25692517,677.62,677.07,0.97365478]
[1752171953358,0.25692517,677.62,677.08,0.97365478]
[1752171953657,0.25692517,677.62,677.09,0.97365478]
[1752171953858,0.25692517,677.62,677.1,0.97365478]
[1752171954055,0.25692517,677.62,677.11,0.97365478]
[1752171954258,0.25692517,677.62,677.12,0.97365478]
[1752171954459,0.25692517,677.62,677.13,0.97365478]
[1752171954759,0.25692517,677.62,677.14,0.97365478]
[1752171954959,0.25692517,677.62,677.15,0.97365478]
[1752171955156,0.25692517,677.62,677.16,0.97365478]
[1752171955356,0.25692517,677.62,677.17,0.97365478]
[1752171955557,0.25692517,677.62,677.18,0.97365478]
[1752171955761,0.25692517,677.62,677.19,0.97365478]
[1752171955959,0.25692517,677.62,677.2,0.97365478]
[1752171956158,0.25692517,677.62,677.21,0.97365478]
[1752171956359,0.25692517,677.62,677.22,0.97365478]
[1752171956558,0.25692517,677.62,677.23,0.97365478]
[1752171956759,0.25692517,677.62,677.24,0.97365478]
[1752171956958,0.25692517,677.62,677.25,0.97365478]
[1752171957259,0.25692517,677.62,677.26,0.97365478]
[1752171957459,0.25692517,677.62,677.04,1.918]
[1752171957662,0.25692517,677.62,677.05,0.97511548]
[1752171957861,0.25692517,677.62,677.06,0.97511548]
[1752171958061,0.25692517,677.62,677.07,0.97511548]
[1752171958364,0.25692517,677.62,677.08,0.97511548]
[1752171958565,0.25692517,677.62,677.09,0.97511548]
[1752171958763,0.25692517,677.62,677.04,1.918]
[1752171958764,0.25692517,677.62,677.1,0.97511548]
[1752171959065,0.25692517,677.62,677.11,0.97511548]
[1752171959265,0.25692517,677.62,677.12,0.97511548]
[1752171959464,0.25692517,677.62,677.13,0.97511548]
[1752171959764,0.25692517,677.62,677.14,0.97511548]
[1752171959960,0.25692517,677.62,677.15,0.97511548]
[1752171960267,0.25692517,677.62,677.16,0.97511548]
[1752171960471,0.25692517,677.62,677.17,0.97511548]
[1752171960671,0.25692517,677.62,677.18,0.97511548]
[1752171960868,0.25692517,677.62,677.19,0.97511548]
[1752171961071,0.25692517,677.62,677.2,0.97511548]
[1752171961272,0.25692517,677.62,677.21,0.97511548]
[1752171961472,0.25692517,677.62,677.22,0.97511548]
[1752171961768,0.25692517,677.62,677.23,0.97511548]
[1752171962074,0.25692517,677.62,677.24,0.97511548]
[1752171962368,0.25692517,677.62,677.25,0.97511548]
[1752171962569,0.25692517,677.62,677.26,0.97511548]
[1752171962768,0.25692517,677.62,677.27,0.97511548]
[1752171962968,0.25692517,677.62,677.28,0.97511548]
[1752171963172,0.25692517,677.62,677.04,1.918]
[1752171963173,0.25692517,677.62,677.29,0.97511548]
[1752171963472,0.25692517,677.62,677.04,1.918]
[1752171963672,0.25692517,677.62,677.05,0.9757662]
[1752171963869,0.25692517,677.62,677.06,0.9757662]
[1752171964068,0.25692517,677.62,677.07,0.9757662]
[1752171964273,0.25692517,677.62,677.08,0.9757662]
[1752171964467,0.25692517,677.62,677.09,0.9757662]
[1752171964668,0.25692517,677.62,677.1,0.9757662]
[1752171964968,0.25692517,677.62,677.11,0.9757662]
[1752171965170,0.25692517,677.62,677.12,0.9757662]
[1752171965372,0.25692517,677.62,677.13,0.9757662]
[1752171965568,0.25692517,677.62,677.14,0.9757662]
[1752171965772,0.25692517,677.62,677.15,0.9757662]
[1752171965971,0.25692517,677.62,677.16,0.9757662]
[1752171966274,0.25692517,677.62,677.17,0.9757662]
[1752171966275,1.64094868,677.61,677.17,0.9757662]
[1752171966573,1.64094868,677.61,677.18,0.9757662]
[1752171966774,1.64094868,677.61,677.19,0.9757662]
[1752171966976,1.64094868,677.61,677.2,0.9757662]
[1752171967274,1.64094868,677.6,677.21,0.9757662]
[1752171967474,1.64094868,677.61,677.22,0.9757662]
[1752171967674,1.64094868,677.61,677.23,0.9757662]
[1752171967871,1.64094868,677.61,677.24,0.9757662]
[1752171968075,1.64094868,677.61,677.25,0.9757662]
[1752171968278,1.64094868,677.56,677.04,1.918]
[1752171968572,1.64094868,677.6,677.05,0.97807581]
[1752171968773,1.64094868,677.6,677.06,0.97807581]
[1752171968972,1.64094868,677.6,677.07,0.97807581]
[1752171969277,1.64094868,677.59,677.08,0.97807581]
[1752171969472,1.64094868,677.59,677.09,0.97807581]
[1752171969771,1.64094868,677.6,677.1,0.97807581]
[1752171969972,1.64094868,677.59,677.11,0.97807581]
[1752171970173,1.64094868,677.59,677.12,0.97807581]
[1752171970371,1.64094868,677.59,677.13,0.97807581]
[1752171970576,1.64094868,677.59,677.14,0.97807581]
[1752171970773,1.64094868,677.59,677.15,0.97807581]
[1752171971076,1.64094868,677.59,677.16,0.97807581]
[1752171971274,1.64094868,677.58,677.17,0.97807581]
[1752171971474,1.64094868,677.58,677.18,0.97807581]
[1752171971775,1.64094868,677.58,677.19,0.97807581]
[1752171971973,1.64094868,677.58,677.2,0.97807581]
[1752171972173,1.64094868,677.58,677.21,0.97807581]
[1752171972374,1.64094868,677.58,677.22,0.97807581]
[1752171972574,1.64094868,677.58,677.23,0.97807581]
[1752171972774,1.64094868,677.58,677.24,0.97807581]
[1752171972975,1.64094868,677.58,677.25,0.97807581]
[1752171973278,1.64094868,677.56,677.26,0.97807581]
[1752171973479,1.64094868,677.57,677.27,0.97893461]
[1752171973679,1.64094868,677.57,677.28,0.97893461]
[1752171973878,1.64094868,677.57,677.04,1.918]
[1752171974075,1.64094868,677.57,677.05,0.9791773]
[1752171974373,1.64094868,677.57,677.06,0.9791773]
[1752171974578,1.64094868,677.57,677.07,0.9791773]
[1752171974776,1.64094868,677.57,677.04,1.918]
[1752171974777,1.64094868,677.57,677.08,0.9791773]
[1752171974977,1.64094868,677.57,677.09,0.9791773]
[1752171975181,1.64094868,677.55,677.1,0.9791773]
[1752171975476,1.64094868,677.55,677.11,0.9791773]
[1752171975675,1.64094868,677.55,677.12,0.9791773]
[1752171975880,1.64094868,677.54,677.13,0.9791773]
[1752171976077,1.64094868,677.54,677.04,1.918]
[1752171976078,1.64094868,677.54,677.14,0.9791773]
[1752171976280,1.64094868,677.54,677.15,0.9791773]
[1752171976481,1.64094868,677.52,677.16,0.9791773]
[1752171976782,1.64094868,677.52,677.17,0.9791773]
[1752171976983,1.64094868,677.51,677.18,0.9791773]
[1752171977181,1.64094868,677.47,677.19,0.9791773]
[1752171977483,1.64094868,677.47,677.2,0.9791773]
[1752171977782,1.64094868,677.47,677.21,0.9791773]
[1752171977982,1.64094868,677.47,677.22,0.9791773]
[1752171978182,1.64094868,677.44,677.23,0.9791773]
[1752171978483,1.64094868,677.45,677.24,0.9791773]
[1752171978678,1.64094868,677.45,677.25,0.9791773]
[1752171978877,1.64094868,677.45,677.04,1.918]
[1752171979078,1.64094868,677.45,677.05,0.98109165]
[1752171979283,1.64094868,677.45,677.06,0.98109165]
[1752171979484,1.64094868,677.34,677.07,0.98109165]
[1752171979779,1.64094868,677.29,677.08,0.72395006]
[1752171979984,1.23037564,677.28,677.04,1.918]
[1752171980180,3.31756286,677.15,677.04,1.918]
[1752171980384,1.23037564,677.14,677.04,1.918]
[1752171980683,1.23037564,677.13,675.48,2.20169027]
[1752171980883,1.65502811,676.59,675.54,2.20169027]
[1752171981182,1.65502811,676.67,675.61,1.64830484]
[1752171982280,1.65502811,676.73,675.51,1.64830484]
[1752171982580,1.65502811,676.57,675.46,1.64830484]
[1752171982783,0.25738027,676.43,675.38,1.64830484]
[1752171983178,0.25738027,676.43,675.24,0.25716819]
[1752171983179,0.25738027,676.43,675.3,1.64830484]
[1752171983384,0.25738027,676.43,675.39,1.688]
[1752171994985,1.63578225,677.01,675.39,1.688]
[1752171995190,0.25733364,676.55,675.39,1.688]
[1752172018706,0.25733364,676.55,675.4,0.96446242]